bitfinex/quotes_ETHUSD_20220212
["timestamp","ask_amount","ask_price","bid_price","bid_amount"]
[1644636623553,3.6458895,2929.6,2929.3,0.00734714]
[1644636624447,3.6458895,2929.6,2929.2,1.77264862]
[1644636624650,3.6458895,2929.6,2929.3,0.00734714]
[1644636624849,3.5,2929.6,2929.3,0.00734714]
[1644636625248,0.1458895,2929.4,2929.3,0.00734714]
[1644636625652,0.1458895,2929.4,2929.2,1.77264862]
[1644636625854,0.1458895,2929.4,2929.3,0.41]
[1644636626057,0.1458895,2929.4,2929.3,0.5806]
[1644636626254,0.00816438,2930.3,2929.5,3.6]
[1644636626454,0.00816438,2930.3,2929.6,5.40184523]
[1644636626653,0.00816438,2930.3,2929.7,2.28687]
[1644636626852,0.17225328,2930.4,2929.7,2.28687]
[1644636626853,0.17225328,2930.4,2929.8,0.91126839]
[1644636627106,0.00596771,2930.3,2929.9,0.41]
[1644636627300,6.771e-05,2930.3,2930.0,0.85315]
[1644636627500,6.771e-05,2930.3,2930.1,5.40184523]
[1644636627701,6.771e-05,2930.3,2930.1,7.10796523]
[1644636627901,6.771e-05,2930.3,2930.2,1.0]
[1644636628101,0.00165328,2930.4,2930.2,1.0]
[1644636628102,5.328e-05,2930.4,2930.2,6.40184523]
[1644636628303,5.328e-05,2930.4,2930.3,1.3]
[1644636628503,5.328e-05,2930.4,2930.3,1.71]
[1644636628706,5.328e-05,2930.4,2930.3,2.01]
[1644636629304,5.328e-05,2930.4,2930.3,2.1806]
[1644636629905,5.328e-05,2930.4,2930.3,3.0336]
[1644636630105,5.328e-05,2930.4,2930.3,2.9836]
[1644636631047,5.328e-05,2930.4,2930.3,3.40488581]
[1644636631250,5.328e-05,2930.4,2930.3,2.9836]
[1644636631547,5.328e-05,2930.4,2930.3,3.87956716]
[1644636631747,5.328e-05,2930.4,2930.3,2.9336]
[1644636631947,5.328e-05,2930.4,2930.3,2.0806]
[1644636632753,5.328e-05,2930.4,2930.3,3.19885405]
[1644636633053,5.328e-05,2930.4,2930.3,3.78687]
[1644636633453,3.50005328,2930.4,2930.3,3.78687]
[1644636633856,3.50005328,2930.4,2930.3,3.58687]
[1644636634254,3.50005328,2930.4,2930.3,3.88687]
[1644636634697,3.50005328,2930.4,2930.3,4.84448851]
[1644636635297,3.50005328,2930.4,2930.3,4.86535709]
[1644636635502,3.50005328,2930.4,2930.3,4.69475709]
[1644636636302,0.00817147,2930.5,2930.4,3.6]
[1644636636508,0.1706,2931.6,2930.4,3.6]
[1644636636701,0.03267893,2931.1,2930.7,0.8531]
[1644636637202,0.03267893,2931.1,2930.7,1.1531]
[1644636637504,0.03267893,2931.1,2930.9,0.86830931]
[1644636637705,0.1705,2931.6,2930.9,1.72137931]
[1644636637903,0.00817106,2931.0,2930.9,1.72137931]
[1644636638203,0.00817106,2931.0,2930.9,2.73137931]
[1644636638454,0.00817106,2931.0,2930.9,3.73137931]
[1644636638855,0.1705,2932.2,2931.7,0.90019422]
[1644636639058,0.03267917,2931.5,2931.1,0.85287]
[1644636639255,0.03267917,2931.5,2931.2,0.71]
[1644636640057,1.24449667,2932.1,2931.2,1.85903886]
[1644636640256,0.00817072,2931.5,2931.2,1.85903886]
[1644636640456,0.00817072,2931.5,2931.2,2.85903886]
[1644636640857,0.00817072,2931.5,2931.3,1.70567]
[1644636641062,0.00817072,2931.5,2931.3,2.11567]
[1644636641357,0.44689994,2932.3,2931.3,3.41567]
[1644636641562,0.00817068,2931.5,2931.3,3.41567]
[1644636643709,0.001,2932.2,2931.4,0.85283]
[1644636643909,0.03267781,2932.0,2931.5,0.41]
[1644636644111,0.96952812,2931.9,2931.5,0.41]
[1644636644307,0.97052812,2931.9,2931.5,0.41]
[1644636644708,0.97052812,2931.9,2931.6,1.70558]
[1644636644908,0.97052812,2931.9,2931.7,1.28668524]
[1644636645108,0.97769857,2931.8,2931.7,1.28668524]
[1644636645310,0.97769857,2931.8,2931.7,1.41]
[1644636645610,0.97869857,2931.8,2931.7,1.41]
[1644636646047,0.97052812,2931.8,2931.7,1.41]
[1644636647354,0.97052812,2931.8,2931.7,2.26278]
[1644636647355,0.001,2931.8,2931.7,2.26278]
[1644636647956,0.03267676,2932.3,2931.8,3.6]
[1644636648158,0.03267676,2932.3,2931.9,0.41]
[1644636648355,0.03267676,2932.3,2932.0,1.13609807]
[1644636648555,20.0,2932.9,2932.2,0.85257]
[1644636648756,0.94128911,2932.8,2932.2,1.45257]
[1644636649056,0.94128911,2932.8,2932.3,0.41]
[1644636649457,1.11178911,2932.8,2932.3,1.01]
[1644636649704,0.94128911,2932.7,2932.3,1.01]
[1644636650303,0.94128911,2932.7,2932.3,0.41]
[1644636651405,20.0,2932.9,2932.4,0.85263]
[1644636651406,0.94128911,2932.6,2932.4,0.85263]
[1644636651606,0.94128911,2932.5,2932.4,1.26263]
[1644636651807,20.0,2932.9,2932.4,1.26263]
[1644636651808,0.94128911,2932.8,2932.4,1.56263]
[1644636652004,0.94128911,2932.8,2932.4,1.86263]
[1644636652407,0.94128911,2932.8,2932.4,1.26263]
[1644636652408,0.00816977,2932.7,2932.4,1.26263]
[1644636652608,0.94128911,2932.6,2932.4,1.86263]
[1644636653007,0.94128911,2932.6,2932.4,1.26263]
[1644636653456,0.94128911,2932.5,2932.4,1.56263]
[1644636653653,0.00816985,2932.6,2932.4,1.86263]
[1644636653854,0.00816985,2932.6,2932.4,0.41]
[1644636654055,0.93725697,2932.5,2932.4,0.41]
[1644636654459,0.001,2932.8,2932.4,1.56264]
[1644636654757,0.001,2932.8,2932.4,1.86264]
[1644636654758,0.00816989,2932.6,2932.4,1.86264]
[1644636654955,0.00816989,2932.6,2932.4,1.56264]
[1644636655155,0.00816989,2932.6,2932.4,1.58341778]
[1644636655355,0.00816989,2932.6,2932.4,1.88341778]
[1644636655757,3.5,2932.6,2932.4,1.88341778]
[1644636655957,0.001,2932.5,2932.4,1.58341778]
[1644636656757,0.001,2932.5,2932.4,1.88341778]
[1644636657204,20.0,2932.9,2932.4,2.05391778]
[1644636657205,0.00816989,2932.6,2932.4,2.05391778]
[1644636657407,0.00816989,2932.6,2932.5,0.4703]
[1644636657605,0.001,2932.8,2932.6,3.3]
[1644636657806,0.001,2932.8,2932.7,3.9668]
[1644636658206,0.001,2932.8,2932.7,4.2668]
[1644636658706,20.0,2932.9,2932.7,4.2668]
[1644636659807,20.0,2932.9,2932.8,0.1703]
[1644636660008,20.001,2932.9,2932.8,0.5803]
[1644636660209,20.001,2932.9,2932.8,0.41]
[1644636665000,0.00816958,2933.0,2932.9,1.62489496]
[1644636665001,6.958e-05,2933.0,2932.9,1.62489496]
[1644636665199,0.03267295,2933.5,2932.9,7.02674019]
[1644636665398,8.283502,2934.6,2933.0,1.70434]
[1644636665399,0.1703,2934.4,2933.0,1.70434]
[1644636665601,0.00360616,2934.2,2933.1,0.41]
[1644636665803,0.91565656,2934.2,2933.1,0.71]
[1644636666001,0.1703,2934.5,2933.7,0.89299457]
[1644636666002,0.91926272,2934.1,2933.7,0.89299457]
[1644636666203,0.91565656,2934.0,2933.8,0.41]
[1644636666402,0.00360616,2934.4,2933.8,0.41]
[1644636666403,0.91565656,2933.9,2933.8,0.41]
[1644636666603,0.91565656,2934.1,2933.8,0.41]
[1644636667003,0.91565656,2934.1,2933.8,1.41]
[1644636668005,0.91565656,2934.1,2933.8,2.26221]
[1644636668207,3.1,2934.2,2933.8,3.18741]
[1644636668647,3.1,2934.2,2933.8,1.64045199]
[1644636668847,3.1,2934.2,2933.8,1.81075199]
[1644636669249,0.00816871,2934.1,2933.8,1.81075199]
[1644636669447,0.00816871,2934.1,2933.9,0.41]
[1644636669648,0.00816871,2934.1,2933.9,2.4137357]
[1644636669850,0.49028931,2934.2,2934.1,0.85185]
[1644636670055,0.49028931,2934.2,2934.1,1.26185]
[1644636670249,0.49028931,2934.2,2934.1,2.56185]
[1644636670453,0.49028931,2934.2,2934.1,2.73215]
[1644636670850,0.49028931,2934.2,2934.1,2.56185]
[1644636671051,0.49028931,2934.2,2934.1,1.26185]
[1644636671649,1.37801303,2934.2,2934.1,1.26185]
[1644636671852,1.37801303,2934.2,2934.1,0.85185]
[1644636671853,1.37901303,2934.2,2934.1,0.85185]
[1644636672107,1.37901303,2934.2,2934.1,1.15185]
[1644636672302,1.37901303,2934.2,2934.1,2.45185]
[1644636672303,0.49128931,2934.2,2934.1,2.45185]
[1644636672503,0.49028931,2934.2,2934.1,2.45185]
[1644636673003,0.49028931,2934.2,2934.1,0.85185]
[1644636674203,0.49028931,2934.2,2934.1,1.15185]
[1644636674404,0.49028931,2934.2,2934.1,1.45185]
[1644636674604,0.49028931,2934.2,2934.1,2.45185]
[1644636675204,0.49028931,2934.2,2934.1,2.17265345]
[1644636675407,0.49028931,2934.2,2934.1,2.47265345]
[1644636675604,0.49028931,2934.2,2934.1,0.32080345]
[1644636675855,0.49028931,2934.2,2934.1,0.02080345]
[1644636676052,1.54792139,2934.2,2934.1,0.02080345]
[1644636676252,1.54892139,2934.2,2934.1,0.02080345]
[1644636676451,0.49128931,2934.2,2934.1,0.02080345]
[1644636676651,1.37237496,2934.2,2934.1,0.02080345]
[1644636676851,0.49128931,2934.2,2934.1,0.02080345]
[1644636677053,0.49028931,2934.2,2934.1,0.02080345]
[1644636677455,1.37244677,2934.2,2934.1,0.02080345]
[1644636677655,0.49128931,2934.2,2934.1,0.02080345]
[1644636677855,0.49028931,2934.2,2934.1,0.02080345]
[1644636678255,0.00817241,2934.3,2934.1,0.02080345]
[1644636678656,0.00460616,2934.5,2934.1,0.02080345]
[1644636678857,0.00817237,2934.3,2934.1,0.02080345]
[1644636679461,0.88154597,2934.2,2934.1,0.02080345]
[1644636679701,0.17390616,2934.4,2934.1,0.02080345]
[1644636679907,0.17390616,2934.4,2933.9,2.15218]
[1644636679908,0.01801918,2934.2,2933.9,2.15218]
[1644636680305,0.01801918,2934.2,2933.9,2.45218]
[1644636681207,0.02619153,2934.2,2933.9,2.45218]
[1644636682205,0.01801918,2934.2,2933.9,2.45218]
[1644636682404,0.02619153,2934.2,2933.9,3.84175846]
[1644636682804,0.02619153,2934.2,2933.9,4.69381846]
[1644636683455,0.01801918,2934.2,2933.9,4.69381846]
[1644636683653,0.02619153,2934.2,2933.9,5.54578026]
[1644636684655,0.01801918,2934.2,2934.0,0.1703]
[1644636684854,0.02619153,2934.2,2934.1,0.491]
[1644636685054,0.02619153,2934.2,2934.1,0.6613]
[1644636685354,0.02619153,2934.2,2934.1,0.9613]
[1644636685754,0.01801918,2934.2,2934.1,1.9613]
[1644636688705,1.01801918,2934.2,2934.1,0.71446946]
[1644636688905,1.01901918,2934.2,2934.1,0.71446946]
[1644636689507,1.01901918,2934.2,2934.1,1.20546946]
[1644636689909,0.00593931,2934.3,2934.2,4.45182]
[1644636690208,0.02375172,2935.0,2934.4,1.70349]
[1644636690506,0.00360616,2935.5,2934.5,0.491]
[1644636690707,0.63604795,2935.5,2934.5,1.091]
[1644636690951,0.63604795,2935.5,2934.8,0.94580416]
[1644636690952,0.17390616,2935.4,2934.8,0.94580416]
[1644636691155,0.83494457,2935.3,2934.9,0.491]
[1644636691352,0.83494457,2935.3,2934.9,1.491]
[1644636691552,0.83494457,2935.3,2935.0,1.70357]
[1644636691751,0.83494457,2935.3,2935.1,0.491]
[1644636691952,0.83494457,2935.2,2935.1,0.491]
[1644636692358,0.83494457,2935.2,2935.1,1.491]
[1644636692556,0.83494457,2935.2,2935.1,0.491]
[1644636692756,0.83494457,2935.2,2935.1,1.491]
[1644636693057,0.83494457,2935.2,2935.1,2.34273]
[1644636695810,0.00817713,2935.3,2935.1,2.34273]
[1644636695811,0.00917713,2935.3,2935.1,2.34273]
[1644636696012,0.00817713,2935.3,2935.1,2.34273]
[1644636696610,0.00360616,2935.9,2935.1,2.34273]
[1644636696812,0.03270347,2935.8,2935.4,1.09243055]
[1644636697112,0.81608682,2935.7,2935.5,1.34265]
[1644636697515,0.81608682,2935.7,2935.5,2.34265]
[1644636697917,0.00460616,2936.1,2935.7,1.70277]
[1644636698116,0.63604795,2936.6,2935.7,1.70277]
[1644636698117,0.81649277,2936.0,2935.8,0.491]
[1644636698354,0.81649277,2935.9,2935.8,0.791]
[1644636698758,0.81649277,2936.1,2935.8,2.92426527]
[1644636699056,0.001,2936.3,2935.8,2.64231]
[1644636699057,0.81649277,2936.0,2935.8,2.64231]
[1644636699256,0.81649277,2935.9,2935.8,3.49362]
[1644636699456,0.81649277,2935.9,2935.8,2.49362]
[1644636699657,0.81649277,2935.9,2935.8,3.49362]
[1644636700356,0.0081766,2936.0,2935.8,3.49362]
[1644636700556,0.81649277,2935.9,2935.8,3.49362]
[1644636701557,0.82566937,2936.0,2935.8,3.49362]
[1644636701756,0.81649277,2935.9,2935.8,3.99362]
[1644636703607,0.81649277,2935.9,2935.8,2.69362]
[1644636703809,0.81649277,2935.9,2935.8,0.5]
[1644636704013,1.62284072,2935.9,2935.8,0.5]
[1644636704209,1.62284072,2935.9,2935.2,0.02153137]
[1644636704210,0.03043424,2935.7,2935.2,0.02153137]
[1644636704410,1.48397496,2935.7,2935.2,0.02153137]
[1644636704610,1.03994125,2935.4,2935.2,0.02153137]
[1644636704811,0.81749277,2935.3,2935.2,0.02153137]
[1644636705009,0.81749277,2935.3,2934.4,0.491]
[1644636705010,0.81749277,2935.3,2934.5,0.12160137]
[1644636705208,0.81649277,2935.2,2934.5,0.12160137]
[1644636705409,0.82009893,2935.1,2935.0,0.85185]
[1644636705609,0.81649277,2935.1,2935.0,0.85185]
[1644636705851,0.81649277,2935.1,2935.0,1.15185]
[1644636707052,0.81649277,2935.1,2935.0,0.85185]
[1644636707457,0.81649277,2935.1,2934.4,0.1703]
[1644636707757,0.00460616,2935.3,2934.1,0.1703]
[1644636707758,0.82009893,2935.0,2934.1,0.1703]
[1644636707956,0.82009893,2935.0,2934.0,1.6]
[1644636707957,0.81649277,2934.9,2934.0,1.6]
[1644636708257,0.86042762,2934.7,2934.0,1.6]
[1644636708457,0.82009893,2934.6,2934.0,1.6]
[1644636708658,0.81649277,2934.5,2934.0,1.6]
[1644636708859,0.81649277,2934.4,2934.2,0.3]
[1644636709060,0.0077757,2934.5,2934.0,1.1831912]
[1644636709361,0.75909946,2934.4,2934.0,1.3534912]
[1644636709612,0.0077757,2934.5,2934.0,2.2054912]
[1644636709908,0.00360616,2935.1,2934.0,3.09150959]
[1644636710111,0.00360616,2935.1,2934.1,2.1949953]
[1644636710112,0.00777555,2934.4,2934.1,2.1949953]
[1644636710308,0.00777555,2934.4,2934.2,0.84012529]
[1644636710514,0.00777555,2934.4,2934.3,0.491]
[1644636710714,0.76761777,2934.4,2934.3,0.491]
[1644636710915,0.76761777,2934.4,2934.1,0.85211]
[1644636710916,0.75984222,2934.4,2934.1,0.85211]
[1644636711115,5.0,2934.9,2933.1,3.40786]
[1644636711116,1.61219572,2934.3,2933.1,3.40786]
[1644636711313,0.76084222,2934.2,2933.3,0.84039271]
[1644636711514,0.76084222,2934.2,2933.1,3.40786]
[1644636711515,0.76084222,2934.2,2933.9,0.00747786]
[1644636712313,0.76084222,2934.2,2933.4,0.85231]
[1644636712514,0.76084222,2934.2,2933.9,0.00747786]
[1644636713355,0.76084222,2934.2,2933.3,1.0]
[1644636713556,0.76084222,2934.2,2933.3,1.6]
[1644636713757,0.76084222,2934.2,2933.9,0.00747786]
[1644636713957,1.61318692,2934.2,2933.9,0.00747786]
[1644636714158,0.76084222,2934.1,2933.9,0.00747786]
[1644636714359,0.75984222,2934.0,2933.9,0.00747786]
[1644636714564,0.75984222,2934.0,2933.3,1.3]
[1644636714760,0.001,2934.1,2933.3,1.0]
[1644636714761,0.9114944,2933.8,2933.3,1.0]
[1644636715061,1.61235752,2933.7,2933.3,1.0]
[1644636715261,0.76084222,2933.6,2932.7,1.87514]
[1644636715461,0.75984222,2933.5,2932.8,0.69726484]
[1644636715660,0.75984222,2933.4,2932.8,0.69726484]
[1644636715862,0.001,2933.6,2932.8,0.69726484]
[1644636716161,0.001,2933.6,2932.7,1.87514]
[1644636716162,1.15511946,2933.3,2933.0,0.00748008]
[1644636716362,0.73296811,2933.2,2933.0,0.00748008]
[1644636716962,0.73296811,2933.2,2933.0,8.008e-05]
[1644636716963,5.73296811,2933.2,2933.0,8.008e-05]
[1644636717218,5.73296811,2933.2,2932.1,0.25]
[1644636717219,1.7059815,2933.0,2932.1,0.25]
[1644636717416,0.90346811,2932.9,2931.4,0.1705]
[1644636717613,0.73296811,2932.8,2931.5,0.67013677]
[1644636717813,0.1705,2932.7,2931.6,0.67013677]
[1644636718015,0.73296811,2932.6,2931.7,0.67013677]
[1644636718217,0.1705,2932.8,2931.7,0.67013677]
[1644636718420,0.1705,2933.0,2931.8,1.16113677]
[1644636718617,0.001,2933.2,2931.9,0.67013677]
[1644636718816,0.75526344,2933.2,2931.9,0.67013677]
[1644636719016,0.75426344,2933.1,2931.9,0.97013677]
[1644636719216,0.001,2933.4,2932.0,1.67013677]
[1644636719418,1.07211486,2933.2,2932.1,1.16113677]
[1644636719616,1.07211486,2933.2,2932.2,0.67013677]
[1644636719617,0.7552595,2933.1,2932.2,0.67013677]
[1644636719820,0.7552595,2933.1,2932.2,1.16113677]
[1644636720119,0.7552595,2933.1,2932.2,1.64357]
[1644636720319,0.001,2933.1,2932.2,1.64357]
[1644636720720,0.001,2933.1,2932.2,0.791]
[1644636720957,0.001,2933.1,2932.5,0.00746285]
[1644636721758,0.75451409,2933.1,2932.5,0.00746285]
[1644636722058,0.75451409,2933.1,2932.7,0.00746247]
[1644636722262,0.001,2933.1,2932.7,0.00746247]
[1644636723062,0.001,2933.1,2932.4,1.45258]
[1644636723262,0.001,2933.1,2932.8,0.00746222]
[1644636723263,0.75405132,2933.1,2932.8,0.00746222]
[1644636723462,0.001,2933.1,2932.8,0.00746222]
[1644636724262,0.001,2933.1,2932.4,1.45258]
[1644636724462,0.001,2933.1,2932.8,0.00746209]
[1644636725119,0.01805083,2933.2,2932.8,0.00746209]
[1644636725515,0.01805083,2933.2,2932.6,1.15252]
[1644636725716,0.01805083,2933.2,2932.9,0.00746196]
[1644636726716,3.51805083,2933.2,2932.6,1.15252]
[1644636726914,3.51805083,2933.2,2932.9,0.00746196]
[1644636726915,0.001,2933.1,2932.9,0.00746196]
[1644636727320,0.001,2933.1,2932.9,0.49846196]
[1644636727522,0.001,2933.1,2932.9,2.20319196]
[1644636727725,0.001,2933.1,2932.9,2.80319196]
[1644636727921,0.001,2933.1,2932.9,2.79573]
[1644636728121,0.001,2933.1,2932.9,2.80319196]
[1644636729257,1.97193594,2933.2,2933.1,0.85229]
[1644636729458,1.97193594,2933.2,2933.1,1.34329]
[1644636729659,1.97193594,2933.2,2933.1,1.94329]
[1644636730265,1.90016478,2933.2,2933.1,1.94329]
[1644636730461,0.00817171,2933.8,2933.2,3.6]
[1644636730659,0.00817171,2933.8,2933.3,1.34318]
[1644636730858,0.00817171,2933.8,2933.3,2.19537]
[1644636731059,0.00817171,2933.8,2933.3,2.79537]
[1644636731464,1.1192432,2934.5,2933.3,2.79537]
[1644636731662,0.00817252,2933.8,2933.4,0.1703]
[1644636731863,0.00817252,2933.8,2933.5,0.491]
[1644636732116,0.00817252,2933.8,2933.6,0.85214]
[1644636732308,0.00817252,2933.8,2933.7,0.791]
[1644636732510,0.00817252,2933.8,2933.7,1.091]
[1644636732710,1.00691279,2934.7,2933.7,1.091]
[1644636732913,0.03268596,2934.3,2934.0,0.85213]
[1644636733311,0.03268596,2934.3,2934.0,1.34313]
[1644636733611,2.15687,2933.8,2933.7,0.3]
[1644636734310,2.15787,2933.8,2933.7,0.3]
[1644636734511,2.15787,2933.8,2933.7,0.791]
[1644636735010,2.15787,2933.8,2933.7,1.64313]
[1644636735213,0.00360616,2935.0,2933.8,3.6]
[1644636735411,0.00817271,2933.9,2933.8,4.5847]
[1644636735614,0.00817271,2933.9,2933.8,12.17117173]
[1644636736359,0.00360616,2935.1,2934.0,1.7038]
[1644636736559,0.03268565,2934.4,2934.3,0.8519]
[1644636736759,0.03268565,2934.4,2934.3,1.4519]
[1644636736959,0.03268565,2934.4,2934.3,1.9429]
[1644636737166,0.03268565,2934.4,2934.3,8.0819]
[1644636737363,0.03268565,2934.4,2934.3,9.19492455]
[1644636737563,0.00360616,2935.1,2934.6,0.85176]
[1644636737763,0.03268413,2934.9,2934.7,1.34278]
[1644636737966,0.03268413,2934.9,2934.7,1.94278]
[1644636738663,0.03043424,2935.7,2934.7,1.94278]
[1644636738863,0.03043424,2935.7,2935.2,0.85172]
[1644636738864,0.03268276,2935.4,2935.2,0.85172]
[1644636739063,0.03268276,2935.4,2935.2,1.34272]
[1644636739804,0.1703,2935.6,2935.2,1.34272]
[1644636739805,0.1703,2935.6,2935.2,1.64272]
[1644636740007,0.03043424,2935.7,2935.2,1.34272]
[1644636740008,0.00360616,2935.5,2935.2,1.34272]
[1644636740205,0.03043424,2935.7,2935.2,1.34272]
[1644636740206,0.00817153,2935.4,2935.2,1.34272]
[1644636740605,0.00817153,2935.4,2935.2,0.491]
[1644636741007,0.00360616,2935.5,2935.2,0.491]
[1644636741209,0.00817153,2935.4,2935.2,0.491]
[1644636741407,0.00817153,2935.4,2935.3,0.85175]
[1644636742210,0.00360616,2935.6,2935.3,0.85175]
[1644636742411,0.20073424,2935.7,2935.3,0.85175]
[1644636742613,0.20073424,2935.7,2935.4,2.49426]
[1644636742614,0.0081715,2935.5,2935.4,2.49426]
[1644636743555,0.03043424,2935.7,2935.4,2.49426]
[1644636743754,0.00817142,2935.6,2935.4,2.49426]
[1644636744356,3.5,2935.5,2935.4,2.49426]
[1644636744656,3.501,2935.5,2935.4,2.49426]
[1644636747516,3.501,2935.5,2935.4,3.79426]
[1644636747711,3.501,2935.5,2935.4,3.49426]
[1644636747913,3.501,2935.5,2935.4,3.79426]
[1644636749216,3.501,2935.5,2935.4,2.24813799]
[1644636749513,3.501,2935.5,2935.4,2.86813754]
[1644636751955,3.501,2935.5,2935.4,3.72715898]
[1644636752161,0.0081769,2935.6,2935.5,0.90932144]
[1644636752361,0.0081769,2935.6,2935.5,7.70962144]
[1644636752561,0.0081769,2935.6,2935.5,8.70962144]
[1644636752761,0.03043424,2935.7,2935.5,8.70962144]
[1644636752961,0.03043424,2935.7,2935.6,7.72732733]
[1644636753163,0.03043424,2935.7,2935.6,8.68862733]
[1644636753460,0.03043424,2935.7,2935.6,11.00260959]
[1644636753863,0.00360616,2936.1,2935.8,2.39135144]
[1644636754060,0.00360616,2936.9,2935.9,1.17972144]
[1644636754263,0.00360616,2936.1,2935.9,1.17972144]
[1644636754460,0.00360616,2936.9,2936.1,6.82772144]
[1644636754707,0.02373613,2936.5,2936.1,7.31872144]
[1644636754906,0.02373613,2936.5,2936.1,8.61872144]
[1644636755306,0.02373613,2936.5,2936.1,9.48737587]
[1644636755506,0.00360616,2936.9,2936.3,0.68872144]
[1644636755708,0.03270057,2936.7,2936.6,0.68872144]
[1644636755906,0.03270057,2936.7,2936.5,3.81872144]
[1644636756106,0.03270057,2936.7,2936.6,1.791]
[1644636756306,0.03270057,2936.7,2936.6,3.01905572]
[1644636756708,0.00360616,2937.6,2936.6,3.01905572]
[1644636756709,0.00360616,2937.6,2936.9,0.851093]
[1644636756907,0.03269904,2937.2,2937.0,2.19321]
[1644636757214,0.03269904,2937.2,2937.0,2.49321]
[1644636757412,0.03269904,2937.2,2937.0,3.49321]
[1644636757610,0.03269904,2937.2,2937.0,4.34433]
[1644636757812,0.00360616,2937.7,2937.0,4.34433]
[1644636758012,0.00360616,2937.7,2937.1,0.85111]
[1644636758213,0.00817564,2937.2,2937.1,1.15111]
[1644636758455,0.00817564,2937.2,2937.1,2.64211]
[1644636759160,0.00360616,2937.8,2937.3,0.85114]
[1644636759357,0.03269751,2937.7,2937.4,0.491]
[1644636760256,0.00360616,2937.8,2937.4,0.491]
[1644636760457,0.0081753,2937.7,2937.4,0.491]
[1644636761559,0.00360616,2937.8,2937.4,0.491]
[1644636761762,0.0081753,2937.7,2937.4,0.491]
[1644636761960,0.0081753,2937.7,2937.4,0.791]
[1644636762212,0.0081753,2937.7,2937.5,0.85105]
[1644636762413,0.0081753,2937.7,2937.6,0.491]
[1644636762611,0.00360616,2937.8,2937.6,0.491]
[1644636762812,0.001,2937.9,2937.6,0.491]
[1644636763013,0.00817526,2937.7,2937.6,0.491]
[1644636763913,8.43766403,2938.0,2937.7,3.6]
[1644636764116,2.93676705,2938.7,2937.7,3.6]
[1644636764117,0.03269598,2938.2,2937.8,4.94202]
[1644636764319,0.63276611,2939.1,2938.1,6.139]
[1644636764320,0.1701,2939.1,2938.1,6.139]
[1644636764515,3.5,2939.3,2938.2,6.63]
[1644636764516,3.6701,2939.3,2938.2,6.63]
[1644636764713,3.6701,2939.3,2938.2,7.93]
[1644636764714,0.04092649,2939.0,2938.2,7.93]
[1644636764914,0.04092649,2939.0,2938.3,1.0]
[1644636765114,0.04035807,2938.9,2938.4,0.491]
[1644636765315,0.04035807,2938.9,2938.4,0.791]
[1644636765614,0.1701,2939.3,2938.4,1.64165]
[1644636765857,0.1701,2939.4,2938.4,1.64165]
[1644636766055,4.6294026,2939.5,2938.4,0.491]
[1644636766056,0.04206334,2939.2,2938.4,0.491]
[1644636766257,1.01658628,2938.9,2938.4,0.491]
[1644636767261,0.00592878,2939.0,2938.4,0.491]
[1644636767464,1.2184,2939.9,2938.9,6.139]
[1644636767660,5.2579,2940.0,2939.1,1.70107]
[1644636767661,0.1701,2940.0,2939.1,1.70107]
[1644636767861,3.77639994,2940.1,2939.1,1.70107]
[1644636767862,0.03043173,2939.2,2939.1,1.70107]
[1644636768062,0.03043173,2939.2,2939.1,2.00107]
[1644636768262,0.03043173,2939.2,2939.1,2.30107]
[1644636768461,0.03043173,2939.2,2939.1,3.15157]
[1644636768663,1.09305506,2939.9,2939.1,3.15157]
[1644636768964,1.09305506,2939.9,2938.4,0.4]
[1644636768965,5.0,2939.5,2938.4,0.4]
[1644636769163,5.0,2939.3,2938.4,0.4]
[1644636769366,5.0,2939.3,2937.8,0.491]
[1644636769367,0.00532558,2937.9,2937.8,0.491]
[1644636769613,0.00532558,2937.9,2937.6,0.85113]
[1644636769902,0.00532558,2937.9,2937.5,0.491]
[1644636770105,0.00532558,2937.9,2937.6,0.1702]
[1644636770305,0.00532558,2937.9,2937.6,0.491]
[1644636770502,0.00532558,2937.9,2937.7,1.02103]
[1644636770704,0.00532558,2937.9,2937.8,0.491]
[1644636771507,0.00532558,2937.9,2937.4,1.87225]
[1644636771508,0.00532558,2937.9,2937.7,0.00758492]
[1644636772311,0.00532558,2937.9,2937.4,1.70215]
[1644636772512,0.00532558,2937.9,2937.7,0.00758505]
[1644636773555,0.00532558,2937.9,2937.6,1.34213]
[1644636773855,0.00532558,2937.9,2937.7,0.00758505]
[1644636774656,0.00532558,2937.9,2937.6,0.491]
[1644636775054,0.00532558,2937.9,2937.7,0.00758505]
[1644636775855,0.00532558,2937.9,2937.6,0.491]
[1644636776258,0.00532558,2937.9,2937.7,0.00758505]
[1644636777207,0.00532558,2937.9,2937.6,0.491]
[1644636777409,0.00532558,2937.9,2937.7,0.00758505]
[1644636778406,0.00532558,2937.9,2937.6,0.891]
[1644636778607,0.00532558,2937.9,2937.7,0.00758505]
[1644636779611,0.00532558,2937.9,2937.6,0.491]
[1644636779810,0.00532558,2937.9,2937.7,0.00758505]
[1644636780855,0.00532558,2937.9,2937.6,0.491]
[1644636781156,0.00532558,2937.9,2937.7,0.00758505]
[1644636781555,0.30632558,2937.9,2937.7,0.00758505]
[1644636781755,0.69448236,2937.8,2937.7,0.00758505]
[1644636781958,0.69448236,2937.8,2937.4,0.1701]
[1644636781959,0.86456907,2937.8,2937.4,0.1701]
[1644636782162,0.1701,2937.8,2937.7,0.00758505]
[1644636782360,0.86457927,2937.8,2937.7,0.00758505]
[1644636782559,0.69547927,2937.8,2937.7,0.00758505]
[1644636782959,1.54684817,2937.8,2937.7,0.00758505]
[1644636783162,1.54684817,2937.8,2936.9,0.1701]
[1644636783361,0.69907106,2937.7,2937.6,0.00758518]
[1644636783562,0.69447927,2937.7,2937.6,0.00758518]
[1644636784061,1.13701694,2937.7,2937.6,0.00758518]
[1644636784262,1.13701694,2937.7,2936.9,0.1701]
[1644636784263,5.48467983,2937.7,2936.9,0.1701]
[1644636784462,6.55122806,2937.6,2936.9,0.1701]
[1644636784710,3.89804346,2937.5,2936.9,0.1701]
[1644636784906,0.69643216,2937.4,2936.9,0.1701]
[1644636785109,0.00459179,2937.4,2936.9,0.1701]
[1644636785507,0.8515328,2937.3,2936.9,0.1701]
[1644636785707,0.93060846,2937.2,2936.4,0.1701]